[Event "*** Titled Tuesday Blitz"]
[Site "Chess.com"]
[Date "2021.02.02"]
[Round "2"]
[White "L1m96"]
[Black "fmshawnrl123"]
[Result "1/2-1/2"]
[WhiteElo "2516"]
[BlackElo "2761"]
[TimeControl "180+1"]
[EndTime "10:23:45 PST"]
[Termination "Game drawn by 50-move rule"]

1. d4 {[%clk 0:03:00.9]} 1... Nf6 {[%clk 0:03:00]} 2. c4 {[%clk 0:03:00.3]} 2...
e6 {[%clk 0:02:59.3]} 3. Nc3 {[%clk 0:02:59.6]} 3... Bb4 {[%clk 0:02:59.3]} 4.
e3 {[%clk 0:02:59.7]} 4... O-O {[%clk 0:02:58.9]} 5. Ne2 {[%clk 0:02:59.3]} 5...
Re8 {[%clk 0:02:58.3]} 6. a3 {[%clk 0:02:59.3]} 6... Bf8 {[%clk 0:02:57.2]} 7.
g3 {[%clk 0:02:56.2]} 7... d5 {[%clk 0:02:56.4]} 8. Bg2 {[%clk 0:02:55.7]} 8...
c6 {[%clk 0:02:55.1]} 9. b3 {[%clk 0:02:55.8]} 9... Nbd7 {[%clk 0:02:46.3]} 10.
O-O {[%clk 0:02:53.9]} 10... b6 {[%clk 0:02:41.5]} 11. e4 {[%clk 0:02:49]} 11...
Ba6 {[%clk 0:02:39.9]} 12. e5 {[%clk 0:02:45.4]} 12... Ng4 {[%clk 0:02:22.4]}
13. h3 {[%clk 0:02:32.3]} 13... Nh6 {[%clk 0:02:13.1]} 14. Bxh6 {[%clk
0:02:31.9]} 14... gxh6 {[%clk 0:02:10.6]} 15. cxd5 {[%clk 0:02:15.8]} 15... cxd5
{[%clk 0:02:11.5]} 16. Qd2 {[%clk 0:02:15.4]} 16... Rc8 {[%clk 0:02:11]} 17.
Rfc1 {[%clk 0:02:16]} 17... Qg5 {[%clk 0:02:07.9]} 18. Nf4 {[%clk 0:02:14.2]}
18... Rc7 {[%clk 0:01:58.3]} 19. h4 {[%clk 0:02:09.7]} 19... Qe7 {[%clk
0:01:54]} 20. Ncxd5 {[%clk 0:01:46.2]} 20... Rxc1+ {[%clk 0:01:52.2]} 21. Rxc1
{[%clk 0:01:47.1]} 21... exd5 {[%clk 0:01:52.9]} 22. Nxd5 {[%clk 0:01:46.4]}
22... Qxa3 {[%clk 0:01:49.3]} 23. Rc7 {[%clk 0:01:37.3]} 23... Bb5 {[%clk
0:01:18.5]} 24. Bh3 {[%clk 0:01:31.1]} 24... Qxb3 {[%clk 0:00:51.5]} 25. Rxd7
{[%clk 0:01:12.8]} 25... Bxd7 {[%clk 0:00:38.7]} 26. Nf6+ {[%clk 0:01:12.7]}
26... Kh8 {[%clk 0:00:37.3]} 27. Bxd7 {[%clk 0:01:09.7]} 27... Rd8 {[%clk
0:00:29.4]} 28. Qf4 {[%clk 0:01:09.6]} 28... Qb1+ {[%clk 0:00:20.5]} 29. Kg2
{[%clk 0:01:07.8]} 29... Bg7 {[%clk 0:00:19.9]} 30. Bf5 {[%clk 0:01:08]} 30...
Qd1 {[%clk 0:00:15.1]} 31. Nd7 {[%clk 0:00:54.7]} 31... a5 {[%clk 0:00:11.8]}
32. Bg4 {[%clk 0:00:51]} 32... Qa4 {[%clk 0:00:09.4]} 33. Qxf7 {[%clk
0:00:31.6]} 33... Qxd4 {[%clk 0:00:07.1]} 34. e6 {[%clk 0:00:23.1]} 34... Qxg4
{[%clk 0:00:05.7]} 35. f3 {[%clk 0:00:15.5]} 35... Qd4 {[%clk 0:00:04.8]} 36.
Kh3 {[%clk 0:00:09.8]} 36... Qd2 {[%clk 0:00:04.7]} 37. Nf6 {[%clk 0:00:08.2]}
37... Qd6 {[%clk 0:00:04]} 38. Nh5 {[%clk 0:00:03.3]} 38... Qf8 {[%clk
0:00:03.3]} 39. Qb7 {[%clk 0:00:02]} 39... Re8 {[%clk 0:00:02.8]} 40. Kg4 {[%clk
0:00:01.7]} 40... Qg8 {[%clk 0:00:02.2]} 41. f4 {[%clk 0:00:02.6]} 41... Bf6+
{[%clk 0:00:01.9]} 42. Kf3 {[%clk 0:00:03.5]} 42... Rxe6 {[%clk 0:00:02.5]} 43.
Nxf6 {[%clk 0:00:04.3]} 43... Rxf6 {[%clk 0:00:03.4]} 44. Qe4 {[%clk 0:00:05]}
44... Rg6 {[%clk 0:00:03.7]} 45. Qd4+ {[%clk 0:00:05.6]} 45... Rg7 {[%clk
0:00:04.6]} 46. h5 {[%clk 0:00:06.1]} 46... Qf7 {[%clk 0:00:05]} 47. g4 {[%clk
0:00:06.2]} 47... Qb3+ {[%clk 0:00:04.7]} 48. Kg2 {[%clk 0:00:06.3]} 48... Qg8
{[%clk 0:00:05.6]} 49. Kg3 {[%clk 0:00:06.8]} 49... a4 {[%clk 0:00:05.8]} 50. g5
{[%clk 0:00:07.3]} 50... hxg5 {[%clk 0:00:05.5]} 51. fxg5 {[%clk 0:00:08]} 51...
Qb3+ {[%clk 0:00:05.6]} 52. Kh4 {[%clk 0:00:07.7]} 52... Qf7 {[%clk 0:00:04.5]}
53. h6 {[%clk 0:00:07.3]} 53... Kg8 {[%clk 0:00:04.7]} 54. hxg7 {[%clk
0:00:06.7]} 54... a3 {[%clk 0:00:03.2]} 55. Qxb6 {[%clk 0:00:03.9]} 55... a2
{[%clk 0:00:02.6]} 56. Qb8+ {[%clk 0:00:02.5]} 56... Kxg7 {[%clk 0:00:03]} 57.
Qb2+ {[%clk 0:00:03.2]} 57... Kg8 {[%clk 0:00:03.2]} 58. Qb8+ {[%clk 0:00:02.4]}
58... Kg7 {[%clk 0:00:03.7]} 59. Qb2+ {[%clk 0:00:02.8]} 59... Kf8 {[%clk
0:00:04.3]} 60. Qb8+ {[%clk 0:00:03]} 60... Qe8 {[%clk 0:00:04.9]} 61. Qf4+
{[%clk 0:00:02.1]} 61... Kg8 {[%clk 0:00:04]} 62. Qc4+ {[%clk 0:00:02.6]} 62...
Qf7 {[%clk 0:00:04.2]} 63. Qc8+ {[%clk 0:00:03.3]} 63... Kg7 {[%clk 0:00:04.7]}
64. Qc3+ {[%clk 0:00:04]} 64... Kg6 {[%clk 0:00:04.8]} 65. Qc2+ {[%clk
0:00:04.4]} 65... Kg7 {[%clk 0:00:02.9]} 66. Qc3+ {[%clk 0:00:05]} 66... Kf8
{[%clk 0:00:03.7]} 67. Qc8+ {[%clk 0:00:05]} 67... Ke7 {[%clk 0:00:03.3]} 68.
Qc7+ {[%clk 0:00:05.2]} 68... Ke6 {[%clk 0:00:02.8]} 69. Qc4+ {[%clk 0:00:05.6]}
69... Ke7 {[%clk 0:00:03.3]} 70. Qc7+ {[%clk 0:00:06]} 70... Kf8 {[%clk
0:00:03.2]} 71. Qc8+ {[%clk 0:00:06.2]} 71... Qe8 {[%clk 0:00:03.9]} 72. Qf5+
{[%clk 0:00:06.4]} 72... Kg8 {[%clk 0:00:02.7]} 73. Qd5+ {[%clk 0:00:07]} 73...
Qf7 {[%clk 0:00:03.1]} 74. Qd8+ {[%clk 0:00:07.4]} 74... Kg7 {[%clk 0:00:03.5]}
75. Qd4+ {[%clk 0:00:07.9]} 75... Kf8 {[%clk 0:00:03.6]} 76. Qd8+ {[%clk
0:00:08]} 76... Qe8 {[%clk 0:00:04.2]} 77. Qd6+ {[%clk 0:00:08]} 77... Kg7
{[%clk 0:00:03.3]} 78. Qd4+ {[%clk 0:00:08.1]} 78... Kf7 {[%clk 0:00:02.9]} 79.
Qc4+ {[%clk 0:00:08.3]} 79... Ke7 {[%clk 0:00:03.1]} 80. Qxa2 {[%clk 0:00:08.3]}
80... Qc6 {[%clk 0:00:03.2]} 81. Qe2+ {[%clk 0:00:07.5]} 81... Kf7 {[%clk
0:00:03.5]} 82. Qf2+ {[%clk 0:00:07.7]} 82... Kg8 {[%clk 0:00:03.4]} 83. Qf6
{[%clk 0:00:06.1]} 83... Qe4+ {[%clk 0:00:02.8]} 84. Kg3 {[%clk 0:00:05.7]}
84... Qd3+ {[%clk 0:00:02.8]} 85. Kg4 {[%clk 0:00:06.1]} 85... Qd7+ {[%clk
0:00:03.3]} 86. Kg3 {[%clk 0:00:06.2]} 86... Qd3+ {[%clk 0:00:03.4]} 87. Kg4
{[%clk 0:00:06.7]} 87... Qg6 {[%clk 0:00:03.3]} 88. Qd8+ {[%clk 0:00:06.4]}
88... Kg7 {[%clk 0:00:03.1]} 89. Qe7+ {[%clk 0:00:06.5]} 89... Qf7 {[%clk
0:00:03]} 90. Qe5+ {[%clk 0:00:06.8]} 90... Kg6 {[%clk 0:00:02.8]} 91. Qe4+
{[%clk 0:00:06.1]} 91... Kg7 {[%clk 0:00:03.3]} 92. Qe5+ {[%clk 0:00:06.6]}
92... Kf8 {[%clk 0:00:03.8]} 93. Qh8+ {[%clk 0:00:06.6]} 93... Ke7 {[%clk
0:00:03.8]} 94. Qe5+ {[%clk 0:00:07.1]} 94... Kd7 {[%clk 0:00:04.1]} 95. Qb5+
{[%clk 0:00:07.2]} 95... Kd6 {[%clk 0:00:03.8]} 96. Qb6+ {[%clk 0:00:07.2]}
96... Ke5 {[%clk 0:00:03.7]} 97. Qe3+ {[%clk 0:00:07.1]} 97... Kd6 {[%clk
0:00:03.9]} 98. Qd4+ {[%clk 0:00:07.2]} 98... Ke7 {[%clk 0:00:03.7]} 99. Qa7+
{[%clk 0:00:07.3]} 99... Ke6 {[%clk 0:00:03.3]} 100. Qa2+ {[%clk 0:00:07.2]}
100... Ke7 {[%clk 0:00:03.3]} 101. Qa7+ {[%clk 0:00:07.9]} 101... Kf8 {[%clk
0:00:03.6]} 102. Qd4 {[%clk 0:00:07.9]} 102... Qe6+ {[%clk 0:00:03]} 103. Kh4
{[%clk 0:00:07.8]} 103... Qg6 {[%clk 0:00:03]} 104. Qf4+ {[%clk 0:00:07.3]}
104... Kg8 {[%clk 0:00:03.3]} 105. Qb8+ {[%clk 0:00:07.3]} 105... Kg7 {[%clk
0:00:03.2]} 106. Qc7+ {[%clk 0:00:08.1]} 106... Kg8 {[%clk 0:00:03.4]} 107. Qd8+
{[%clk 0:00:08.6]} 107... Kg7 {[%clk 0:00:03.4]} 108. Qe7+ {[%clk 0:00:09.1]}
108... Qf7 {[%clk 0:00:03.6]} 109. Qe5+ {[%clk 0:00:08.9]} 109... Kg6 {[%clk
0:00:03.8]} 110. Qe4+ {[%clk 0:00:09.1]} 110... Kg7 {[%clk 0:00:04.2]} 111. Qe5+
{[%clk 0:00:09.3]} 111... Kg8 {[%clk 0:00:04.6]} 112. Qb8+ {[%clk 0:00:09.2]}
112... Qf8 {[%clk 0:00:05.1]} 113. Qb3+ {[%clk 0:00:09]} 113... Kh8 {[%clk
0:00:05.1]} 114. Qc3+ {[%clk 0:00:09.2]} 114... Kg8 {[%clk 0:00:04.5]} 115. Qc4+
{[%clk 0:00:09.7]} 115... Qf7 {[%clk 0:00:04.9]} 116. Qc8+ {[%clk 0:00:09.9]}
116... Kg7 {[%clk 0:00:05]} 117. Qc3+ {[%clk 0:00:10.4]} 117... Kg6 {[%clk
0:00:04.7]} 118. Qd3+ {[%clk 0:00:10.5]} 118... Kg7 {[%clk 0:00:04.9]} 119. Qd4+
{[%clk 0:00:10.8]} 119... Kf8 {[%clk 0:00:05]} 120. Qh8+ {[%clk 0:00:10.5]}
120... Ke7 {[%clk 0:00:05]} 121. Qe5+ {[%clk 0:00:10.9]} 121... Kd8 {[%clk
0:00:05.3]} 122. Qd6+ {[%clk 0:00:10.5]} 122... Kc8 {[%clk 0:00:04.3]} 123. Qc6+
{[%clk 0:00:09.9]} 123... Kd8 {[%clk 0:00:04.4]} 124. Qa8+ {[%clk 0:00:09.4]}
124... Ke7 {[%clk 0:00:04]} 125. Qb7+ {[%clk 0:00:09.9]} 125... Ke6 {[%clk
0:00:03.7]} 126. Qe4+ {[%clk 0:00:10.3]} 126... Kd6 {[%clk 0:00:03.3]} 127. Qd4+
{[%clk 0:00:09.2]} 127... Ke7 {[%clk 0:00:03.3]} 128. Qe5+ {[%clk 0:00:09.1]}
128... Kd7 {[%clk 0:00:03.1]} 129. Kg3 {[%clk 0:00:08.2]} 129... Qb3+ {[%clk
0:00:02.6]} 130. Kg4 {[%clk 0:00:08.3]} 1/2-1/2

[Event "*** Titled Tuesday Blitz"]
[Site "Chess.com"]
[Date "2021.02.02"]
[Round "3"]
[White "Twitch_ElhamBlitz05"]
[Black "kakakz"]
[Result "1-0"]
[WhiteElo "2845"]
[BlackElo "2460"]
[TimeControl "180+1"]
[EndTime "10:25:24 PST"]
[Termination "Twitch_ElhamBlitz05 won by resignation"]

1. e4 {[%clk 0:03:00.5]} 1... c5 {[%clk 0:02:56.9]} 2. Nf3 {[%clk 0:03:00.4]}
2... d6 {[%clk 0:02:57.5]} 3. d4 {[%clk 0:03:00.2]} 3... cxd4 {[%clk 0:02:58.4]}
4. Nxd4 {[%clk 0:03:00.8]} 4... Nf6 {[%clk 0:02:59.3]} 5. Nc3 {[%clk 0:03:01.3]}
5... Nc6 {[%clk 0:02:59.6]} 6. Bc4 {[%clk 0:03:00.8]} 6... Qb6 {[%clk
0:02:59.2]} 7. Nb3 {[%clk 0:02:54.5]} 7... e6 {[%clk 0:02:59.2]} 8. Bf4 {[%clk
0:02:53.1]} 8... Ne5 {[%clk 0:02:58.3]} 9. Be2 {[%clk 0:02:52.4]} 9... Be7
{[%clk 0:02:55.4]} 10. Be3 {[%clk 0:02:51.8]} 10... Qc7 {[%clk 0:02:54.4]} 11.
Qd4 {[%clk 0:02:48.9]} 11... Neg4 {[%clk 0:02:41.8]} 12. Bxg4 {[%clk 0:02:47.9]}
12... Nxg4 {[%clk 0:02:41.3]} 13. Qxg7 {[%clk 0:02:47.6]} 1-0

[Event "*** Titled Tuesday Blitz"]
[Site "Chess.com"]
[Date "2021.02.02"]
[Round "3"]
[White "sopo-tereladze"]
[Black "DiogenesSinopeus"]
[Result "0-1"]
[WhiteElo "2312"]
[BlackElo "2517"]
[TimeControl "180+1"]
[EndTime "10:26:07 PST"]
[Termination "DiogenesSinopeus won by resignation"]

1. e4 {[%clk 0:03:00.9]} 1... e5 {[%clk 0:02:59.6]} 2. Nf3 {[%clk 0:03:00.6]}
2... Nc6 {[%clk 0:02:59.8]} 3. Bb5 {[%clk 0:02:58.9]} 3... a6 {[%clk 0:03:00.3]}
4. Ba4 {[%clk 0:02:58.5]} 4... d6 {[%clk 0:03:01.2]} 5. d4 {[%clk 0:02:57.1]}
5... b5 {[%clk 0:03:00.9]} 6. Bb3 {[%clk 0:02:56.1]} 6... Nxd4 {[%clk
0:03:01.3]} 7. Nxd4 {[%clk 0:02:55.2]} 7... exd4 {[%clk 0:03:02.2]} 8. Qxd4
{[%clk 0:02:44.7]} 8... c5 {[%clk 0:03:01.9]} 9. Qd5 {[%clk 0:02:44.4]} 9... Be6
{[%clk 0:03:02]} 10. Qc6+ {[%clk 0:02:43.8]} 10... Bd7 {[%clk 0:03:02.1]} 11.
Bxf7+ {[%clk 0:02:22]} 11... Kxf7 {[%clk 0:03:03]} 12. Qd5+ {[%clk 0:02:22.9]}
12... Be6 {[%clk 0:02:59.7]} 13. Qb7+ {[%clk 0:02:19.6]} 13... Be7 {[%clk
0:02:54.5]} 14. O-O {[%clk 0:02:19.1]} 14... Nf6 {[%clk 0:02:48.3]} 15. Nc3
{[%clk 0:02:10.8]} 15... Qd7 {[%clk 0:02:39.7]} 16. Qb6 {[%clk 0:02:07.8]} 16...
Bd8 {[%clk 0:02:38]} 0-1

[Event "*** Titled Tuesday Blitz"]
[Site "Chess.com"]
[Date "2021.02.02"]
[Round "3"]
[White "SilviusTiberius"]
[Black "Gusarov91"]
[Result "1-0"]
[WhiteElo "2474"]
[BlackElo "1216"]
[TimeControl "180+1"]
[EndTime "10:26:15 PST"]
[Termination "SilviusTiberius won by resignation"]

1. e4 {[%clk 0:02:59.9]} 1... c5 {[%clk 0:02:59.9]} 2. Nf3 {[%clk 0:02:59.3]}
2... d6 {[%clk 0:03:00.4]} 3. d4 {[%clk 0:02:59.8]} 3... cxd4 {[%clk 0:03:00.9]}
4. Nxd4 {[%clk 0:03:00.4]} 4... Nf6 {[%clk 0:03:01.6]} 5. Nc3 {[%clk 0:03:00.9]}
5... a6 {[%clk 0:03:02.2]} 6. Be3 {[%clk 0:03:01.4]} 6... Ng4 {[%clk 0:03:02.1]}
7. Bc1 {[%clk 0:03:00.3]} 7... Nf6 {[%clk 0:03:01.7]} 8. f3 {[%clk 0:03:00.6]}
8... e5 {[%clk 0:03:01.7]} 9. Nb3 {[%clk 0:03:01]} 9... Be7 {[%clk 0:03:02.2]}
10. Be3 {[%clk 0:03:00.4]} 10... O-O {[%clk 0:03:02.6]} 11. Qd2 {[%clk
0:02:58.2]} 11... Be6 {[%clk 0:03:03]} 12. O-O-O {[%clk 0:02:56.9]} 12... Nbd7
{[%clk 0:03:02.3]} 13. g4 {[%clk 0:02:56.2]} 13... Nc5 {[%clk 0:03:02.6]} 14.
Nxc5 {[%clk 0:02:46.5]} 14... dxc5 {[%clk 0:03:02.8]} 15. g5 {[%clk 0:02:46.5]}
15... Nd7 {[%clk 0:03:00.7]} 16. Nd5 {[%clk 0:02:45.8]} 16... Rc8 {[%clk
0:02:59]} 17. Nxe7+ {[%clk 0:02:45.1]} 17... Qxe7 {[%clk 0:02:59]} 18. Qd6
{[%clk 0:02:44.1]} 18... Rfe8 {[%clk 0:02:51.8]} 19. Qxe7 {[%clk 0:02:42.9]}
19... Rxe7 {[%clk 0:02:52]} 20. a4 {[%clk 0:02:35.3]} 20... c4 {[%clk
0:02:39.3]} 21. Rd6 {[%clk 0:02:21.4]} 21... Nc5 {[%clk 0:02:34.2]} 22. Bxc5
{[%clk 0:02:20.1]} 1-0

[Event "*** Titled Tuesday Blitz"]
[Site "Chess.com"]
[Date "2021.02.02"]
[Round "3"]
[White "jerry_77"]
[Black "bocah_sakit"]
[Result "0-1"]
[WhiteElo "2457"]
[BlackElo "2813"]
[TimeControl "180+1"]
[EndTime "10:26:19 PST"]
[Termination "bocah_sakit won by resignation"]

1. e4 {[%clk 0:03:00.9]} 1... c5 {[%clk 0:02:59.9]} 2. Nf3 {[%clk 0:02:59.6]}
2... Nc6 {[%clk 0:03:00.4]} 3. Nc3 {[%clk 0:03:00.2]} 3... g6 {[%clk 0:02:59.5]}
4. d4 {[%clk 0:03:00.3]} 4... cxd4 {[%clk 0:03:00.1]} 5. Nxd4 {[%clk 0:03:01.2]}
5... Bg7 {[%clk 0:03:00.8]} 6. Be3 {[%clk 0:03:01.3]} 6... Nf6 {[%clk
0:03:01.2]} 7. Bc4 {[%clk 0:03:00.3]} 7... O-O {[%clk 0:03:01.4]} 8. Bb3 {[%clk
0:03:00.7]} 8... d6 {[%clk 0:03:02]} 9. f3 {[%clk 0:03:00.3]} 9... Bd7 {[%clk
0:03:02.4]} 10. Qd2 {[%clk 0:03:00.9]} 10... Nxd4 {[%clk 0:03:02.9]} 11. Bxd4
{[%clk 0:03:00.7]} 11... b5 {[%clk 0:03:03.8]} 12. O-O-O {[%clk 0:03:00.5]}
12... a5 {[%clk 0:03:02.3]} 13. a4 {[%clk 0:02:44.3]} 13... bxa4 {[%clk
0:02:59.7]} 14. Bxa4 {[%clk 0:02:44.5]} 14... Bxa4 {[%clk 0:02:54.5]} 15. Nxa4
{[%clk 0:02:45.4]} 15... Qc7 {[%clk 0:02:54.2]} 16. h4 {[%clk 0:02:41.9]} 16...
Rfc8 {[%clk 0:02:50.6]} 17. Nb6 {[%clk 0:02:03.4]} 17... Bh6 {[%clk 0:02:49.5]}
0-1

[Event "*** Titled Tuesday Blitz"]
[Site "Chess.com"]
[Date "2021.02.02"]
[Round "3"]
[White "GumisGLHF"]
[Black "PetrolulSah"]
[Result "0-1"]
[WhiteElo "2343"]
[BlackElo "2197"]
[TimeControl "180+1"]
[EndTime "10:26:24 PST"]
[Termination "PetrolulSah won by checkmate"]

1. d4 {[%clk 0:02:53]} 1... d5 {[%clk 0:02:58.2]} 2. Nc3 {[%clk 0:02:52.2]} 2...
Nf6 {[%clk 0:02:56.4]} 3. Bf4 {[%clk 0:02:50.5]} 3... g6 {[%clk 0:02:55.7]} 4.
Qd2 {[%clk 0:02:47.2]} 4... Bg7 {[%clk 0:02:55.5]} 5. Bh6 {[%clk 0:02:46.7]}
5... O-O {[%clk 0:02:54.7]} 6. Bxg7 {[%clk 0:02:44.9]} 6... Kxg7 {[%clk
0:02:55.6]} 7. h4 {[%clk 0:02:44.7]} 7... h5 {[%clk 0:02:54.4]} 8. O-O-O {[%clk
0:02:41.5]} 8... Ne4 {[%clk 0:02:51.7]} 9. Nxe4 {[%clk 0:02:40.7]} 9... dxe4
{[%clk 0:02:52.6]} 10. Qf4 {[%clk 0:02:38.1]} 10... Qd5 {[%clk 0:02:37.8]} 11.
Kb1 {[%clk 0:02:33.8]} 11... c5 {[%clk 0:02:28.8]} 12. e3 {[%clk 0:02:21]} 12...
cxd4 {[%clk 0:02:19.2]} 13. Rxd4 {[%clk 0:02:19]} 13... Qa5 {[%clk 0:02:14]} 14.
Rxe4 {[%clk 0:02:06.9]} 14... Qe1# {[%clk 0:02:09.6]} 0-1

[Event "*** Titled Tuesday Blitz"]
[Site "Chess.com"]
[Date "2021.02.02"]
[Round "3"]
[White "fmshawnrl123"]
[Black "Tpros"]
[Result "1-0"]
[WhiteElo "2764"]
[BlackElo "2521"]
[TimeControl "180+1"]
[EndTime "10:26:28 PST"]
[Termination "fmshawnrl123 won by resignation"]

1. e3 {[%clk 0:03:00.9]} 1... e6 {[%clk 0:02:59.7]} 2. c4 {[%clk 0:03:01]} 2...
c6 {[%clk 0:02:59.2]} 3. Nf3 {[%clk 0:02:59.6]} 3... d5 {[%clk 0:02:59.6]} 4.
Be2 {[%clk 0:02:54.2]} 4... Nf6 {[%clk 0:03:00]} 5. O-O {[%clk 0:02:53.6]} 5...
b6 {[%clk 0:03:00.6]} 6. b3 {[%clk 0:02:51.8]} 6... Bb7 {[%clk 0:03:01]} 7. Bb2
{[%clk 0:02:51.2]} 7... Nbd7 {[%clk 0:03:01.3]} 8. d4 {[%clk 0:02:50.5]} 8...
Bd6 {[%clk 0:03:01]} 9. Nc3 {[%clk 0:02:51.1]} 9... O-O {[%clk 0:02:58.6]} 10.
Qc2 {[%clk 0:02:51.7]} 10... a6 {[%clk 0:02:57.2]} 11. e4 {[%clk 0:02:51.7]}
11... dxe4 {[%clk 0:02:57.3]} 12. Nxe4 {[%clk 0:02:52.6]} 12... Nxe4 {[%clk
0:02:57.7]} 13. Qxe4 {[%clk 0:02:53.5]} 13... Qc7 {[%clk 0:02:56.9]} 14. Bd3
{[%clk 0:02:52.1]} 14... g6 {[%clk 0:02:52.6]} 15. Qh4 {[%clk 0:02:51]} 15... f6
{[%clk 0:02:43.3]} 16. Rfe1 {[%clk 0:02:48.5]} 16... Rae8 {[%clk 0:02:42.2]} 17.
Re2 {[%clk 0:02:46.3]} 17... c5 {[%clk 0:02:40.5]} 18. Rae1 {[%clk 0:02:45.1]}
18... Bxf3 {[%clk 0:02:40.1]} 19. gxf3 {[%clk 0:02:46]} 19... cxd4 {[%clk
0:02:40.6]} 20. Rxe6 {[%clk 0:02:42.8]} 20... Rxe6 {[%clk 0:02:40.6]} 21. Rxe6
{[%clk 0:02:43.5]} 21... Ne5 {[%clk 0:02:41.3]} 22. Be4 {[%clk 0:02:41.4]} 22...
Bc5 {[%clk 0:02:22]} 23. f4 {[%clk 0:02:34.5]} 23... Qd7 {[%clk 0:02:10.3]} 24.
fxe5 {[%clk 0:02:31.5]} 1-0

[Event "*** Titled Tuesday Blitz"]
[Site "Chess.com"]
[Date "2021.02.02"]
[Round "3"]
[White "Coiote53"]
[Black "PLAYER_2006_M"]
[Result "0-1"]
[WhiteElo "2347"]
[BlackElo "2530"]
[TimeControl "180+1"]
[EndTime "10:26:38 PST"]
[Termination "PLAYER_2006_M won by resignation"]

1. e4 {[%clk 0:03:00.9]} 1... e5 {[%clk 0:02:59.8]} 2. Nf3 {[%clk 0:03:00.8]}
2... Nc6 {[%clk 0:03:00.3]} 3. d4 {[%clk 0:03:00.8]} 3... exd4 {[%clk
0:03:01.2]} 4. Nxd4 {[%clk 0:03:01.7]} 4... Nf6 {[%clk 0:03:01.8]} 5. Nxc6
{[%clk 0:03:00.7]} 5... bxc6 {[%clk 0:03:02.1]} 6. e5 {[%clk 0:03:01.2]} 6...
Qe7 {[%clk 0:03:02.7]} 7. Qe2 {[%clk 0:03:00.8]} 7... Nd5 {[%clk 0:03:02.8]} 8.
c4 {[%clk 0:02:59.8]} 8... Ba6 {[%clk 0:03:02.9]} 9. Nd2 {[%clk 0:02:58.5]} 9...
g6 {[%clk 0:03:01.1]} 10. Nf3 {[%clk 0:02:53.2]} 10... Bg7 {[%clk 0:03:00.6]}
11. Bg5 {[%clk 0:02:52.1]} 11... Qb4+ {[%clk 0:03:00]} 12. Qd2 {[%clk
0:02:52.1]} 12... Qxd2+ {[%clk 0:02:59.2]} 13. Bxd2 {[%clk 0:02:52.4]} 13... Nb6
{[%clk 0:02:59.5]} 14. b3 {[%clk 0:02:49.1]} 14... d6 {[%clk 0:02:57.4]} 15.
O-O-O {[%clk 0:02:44.6]} 15... dxe5 {[%clk 0:02:57.3]} 16. Nxe5 {[%clk 0:02:45]}
16... Bxe5 {[%clk 0:02:58.2]} 17. Re1 {[%clk 0:02:45.2]} 17... f6 {[%clk
0:02:58.4]} 18. f4 {[%clk 0:02:43.3]} 18... Nd7 {[%clk 0:02:58.2]} 19. fxe5
{[%clk 0:02:36.1]} 19... Nxe5 {[%clk 0:02:59.1]} 20. Bc3 {[%clk 0:02:36.6]}
20... O-O {[%clk 0:02:59.6]} 21. Be2 {[%clk 0:02:26.4]} 21... Rad8 {[%clk
0:02:52.6]} 22. Bxe5 {[%clk 0:02:24.2]} 22... fxe5 {[%clk 0:02:52.5]} 23. Bf3
{[%clk 0:02:24.8]} 23... Rfe8 {[%clk 0:02:35.3]} 24. Bxc6 {[%clk 0:02:16.2]}
24... Re7 {[%clk 0:02:34.8]} 25. Re2 {[%clk 0:02:12.8]} 25... Rd6 {[%clk
0:02:31.3]} 26. Bd5+ {[%clk 0:02:09.4]} 26... Rxd5 {[%clk 0:02:31]} 0-1

[Event "*** Titled Tuesday Blitz"]
[Site "Chess.com"]
[Date "2021.02.02"]
[Round "3"]
[White "konradrutkowski"]
[Black "olksuna"]
[Result "0-1"]
[WhiteElo "2430"]
[BlackElo "2695"]
[TimeControl "180+1"]
[EndTime "10:27:16 PST"]
[Termination "olksuna won by resignation"]

1. e4 {[%clk 0:03:00.9]} 1... c5 {[%clk 0:02:59.5]} 2. Nf3 {[%clk 0:02:59.7]}
2... e6 {[%clk 0:03:00.1]} 3. d3 {[%clk 0:02:58.4]} 3... Nc6 {[%clk 0:02:59.5]}
4. g3 {[%clk 0:02:57.8]} 4... d5 {[%clk 0:02:59.8]} 5. Qe2 {[%clk 0:02:57.5]}
5... Nf6 {[%clk 0:02:58.7]} 6. Bg2 {[%clk 0:02:56.8]} 6... Be7 {[%clk
0:02:58.6]} 7. O-O {[%clk 0:02:56.4]} 7... O-O {[%clk 0:02:58.9]} 8. e5 {[%clk
0:02:48.1]} 8... Nd7 {[%clk 0:02:58.7]} 9. h4 {[%clk 0:02:47.5]} 9... b5 {[%clk
0:02:52]} 10. Bf4 {[%clk 0:02:44.6]} 10... Bb7 {[%clk 0:02:50.6]} 11. c3 {[%clk
0:02:41.7]} 11... Qb6 {[%clk 0:02:44]} 12. Nbd2 {[%clk 0:02:35.3]} 12... Rfc8
{[%clk 0:02:43.9]} 13. Rfe1 {[%clk 0:02:32.4]} 13... Qd8 {[%clk 0:02:43.9]} 14.
h5 {[%clk 0:02:22.4]} 14... h6 {[%clk 0:02:43.7]} 15. Nf1 {[%clk 0:02:21.1]}
15... Bf8 {[%clk 0:02:41.1]} 16. N1h2 {[%clk 0:02:16.7]} 16... b4 {[%clk
0:02:41.5]} 17. c4 {[%clk 0:02:15.3]} 17... Nb6 {[%clk 0:02:39.3]} 18. g4 {[%clk
0:02:10.9]} 18... dxc4 {[%clk 0:02:36.9]} 19. dxc4 {[%clk 0:02:10.4]} 19... Nd4
{[%clk 0:02:37.8]} 20. Nxd4 {[%clk 0:02:10.1]} 20... Bxg2 {[%clk 0:02:36.1]} 21.
Kxg2 {[%clk 0:02:09.8]} 21... Qxd4 {[%clk 0:02:29.9]} 22. Qf3 {[%clk 0:02:01.7]}
22... Qxc4 {[%clk 0:02:27.4]} 23. Rad1 {[%clk 0:01:57.9]} 23... Nd5 {[%clk
0:02:18]} 24. b3 {[%clk 0:01:52.7]} 24... Qxf4 {[%clk 0:02:16]} 25. Qe4 {[%clk
0:01:49.7]} 25... Qxe4+ {[%clk 0:02:15.5]} 26. Rxe4 {[%clk 0:01:45.5]} 26... Nc3
{[%clk 0:02:15.7]} 0-1

[Event "*** Titled Tuesday Blitz"]
[Site "Chess.com"]
[Date "2021.02.02"]
[Round "3"]
[White "GMMarcinDziuba"]
[Black "GameOverBro"]
[Result "0-1"]
[WhiteElo "2624"]
[BlackElo "2437"]
[TimeControl "180+1"]
[EndTime "10:27:38 PST"]
[Termination "GameOverBro won by resignation"]

1. Nf3 {[%clk 0:03:00.9]} 1... d6 {[%clk 0:02:59.2]} 2. d4 {[%clk 0:03:00.2]}
2... Nf6 {[%clk 0:02:58.9]} 3. Nc3 {[%clk 0:02:59.8]} 3... Nbd7 {[%clk 0:02:58]}
4. e4 {[%clk 0:02:59.7]} 4... e5 {[%clk 0:02:57.6]} 5. Bc4 {[%clk 0:02:54.4]}
5... Be7 {[%clk 0:02:57.5]} 6. O-O {[%clk 0:02:53.8]} 6... c6 {[%clk 0:02:57.4]}
7. a4 {[%clk 0:02:53.6]} 7... Qc7 {[%clk 0:02:55.8]} 8. h3 {[%clk 0:02:52.9]}
8... h6 {[%clk 0:02:56]} 9. Be3 {[%clk 0:02:51.1]} 9... Nf8 {[%clk 0:02:55.9]}
10. a5 {[%clk 0:02:47.9]} 10... Ng6 {[%clk 0:02:55.9]} 11. Qe2 {[%clk
0:02:33.2]} 11... O-O {[%clk 0:02:54.8]} 12. Rfd1 {[%clk 0:02:32.9]} 12... Nh5
{[%clk 0:02:54.2]} 13. d5 {[%clk 0:02:29.2]} 13... Nhf4 {[%clk 0:02:53.4]} 14.
Qf1 {[%clk 0:02:28.9]} 14... Kh7 {[%clk 0:02:35.2]} 15. a6 {[%clk 0:02:26.2]}
15... b5 {[%clk 0:02:35]} 16. Bd3 {[%clk 0:02:15.5]} 16... b4 {[%clk 0:02:35]}
17. Ne2 {[%clk 0:02:14.7]} 17... Nxd3 {[%clk 0:02:31.5]} 18. Rxd3 {[%clk
0:02:06.2]} 18... cxd5 {[%clk 0:02:27.8]} 19. Rxd5 {[%clk 0:02:06.3]} 19... Qxc2
{[%clk 0:02:21]} 20. Ng3 {[%clk 0:02:06.2]} 20... Be6 {[%clk 0:02:04]} 21. Rb5
{[%clk 0:02:03.4]} 21... Bc4 {[%clk 0:01:55.8]} 0-1